[Event "CCT Julius Baer-D3 2024"]
[Site "Online"]
[Date "2024.09.29"]
[Round "54"]
[White "Niemann, Hans Moke"]
[Black "Bharath Subramaniyam H"]
[Result "0-1"]
[Annotator "TA"]
[ECO "C55"]
[WhiteElo "2733"]
[BlackElo "2561"]
[PlyCount "122"]
[EventDate "2024.09.25"]
[EventType "swiss"]
[EventCountry "NET"]
[SourceTitle "playchess.com"]
[Source "ChessBase"]
[SourceQuality "1"]
[TimeControl "600+2"]

{[%evp 13,121,20,27,5,0,0,32,0,7,13,10,16,22,8,23,25,52,22,35,0,0,-98,-27,-53,-78,-94,-96,-86,-85,-143,-127,-105,-79,-84,-58,-53,-70,-58,-58,-58,-15,-97,-29,-108,-55,-115,-111,-186,-163,-160,-103,-108,-97,-88,-65,-147,-152,-167,-166,-149,-137,-150,-83,-216,-237,-308,-296,-319,-287,-329,-367,-364,-368,-350,-344,-425,-436,-470,-472,-536,-547,-631,-601,-500,-263,-528,-529,-529,-525,-704,-646,-702,-726,-695,-316,-626,-316,-729,-718,-1495,-770,-913,0,-2143,-2017,-29987,-5932,-2190,-1301,-29999]} 1. e4 {[%emt 0:00:02]} e5 {[%emt 0:00:03]} 2. Nf3 {[%emt 0:00:02]} Nc6 {[%emt 0:00:01]} 3. Bc4 {[%emt 0:00:00]} Nf6 {[%emt 0:00:01]} 4. d3 {[%emt 0:00:01]} Be7 {[%emt 0:00:01]} 5. O-O {[%emt 0:00:13]} O-O {[%emt 0:00:02]} 6. a4 {[%emt 0:00:01]} d5 {[%emt 0:00:02]} 7. exd5 {[%emt 0:00:01]} Nxd5 {[%emt 0:00:00]} 8. Re1 {[%emt 0:00:02]} Bg4 {[%emt 0:00:15][%cal Bc8g4,Bg4h5,Bh5g6][%mdl 32]} 9. h3 {[%emt 0:00:02]} Bh5 {[%emt 0:00:01]} 10. c3 {[%emt 0:00:03] White is slightly better.} Nb6 {[%emt 0:02:20]} 11. Bb5 {[%emt 0:01:59] Threatens to win with a5.} Nd7 {[%emt 0:00:19]} 12. Nbd2 {[%emt 0:00:05]} Bd6 {[%emt 0:00:36]} 13. Ne4 {[%emt 0:00:18]} f5 {[%emt 0:00:31]} 14. Ng3 {[%emt 0:02:08]} Bg6 {[%emt 0:00:07]} 15. Bg5 {[%emt 0:00:22]} Qe8 {[%emt 0:00:07]} 16. Bc4+ {[%emt 0:01:03]} Kh8 {[%emt 0:00:07]} 17. d4 {[%emt 0:00:02]} (17. Bf4 $11) 17... e4 {[%emt 0:00:54]} (17... f4 $1 $17 {[%cal Rf4g3]} 18. Ne4 Bxe4 19. Rxe4 h6) 18. Nh4 {[%emt 0:00:05]} h6 {[%emt 0:00:43]} 19. Nxg6+ {[%emt 0:00:26]} Qxg6 {[%emt 0:00:00]} 20. Bh4 {[%emt 0:00:02]} Rae8 {[%emt 0:00:33]} 21. Be2 {[%emt 0:00:13]} (21. Qc2 $142) 21... Qh7 $1 $17 {[%emt 0:00:14] And now ...g5 would win.} 22. Nf1 {[%emt 0:00:27]} f4 {[%emt 0:00:26] White must now prevent ...g5.} 23. f3 {[%emt 0:00:27]} e3 {[%emt 0:01:30] Strongly threatening ...g5.} 24. Bd3 {[%emt 0:00:01] White is weak on the dark squares} Qg8 {[%emt 0:00:02] ...g5 would now be deadly.} 25. Re2 {[%emt 0:00:00]} g5 {[%emt 0:00:10]} 26. Be1 {[%emt 0:00:01]} h5 {[%emt 0:00:07]} 27. Nh2 {[%emt 0:00:02]} (27. b4 $11 {keeps the balance.}) 27... Nf6 {[%emt 0:00:02]} ({Better is} 27... a5 $17) 28. Rc2 {[%emt 0:00:07] [#]} (28. b4 $11 {remains equal.}) 28... Qg7 {[%emt 0:00:31]} (28... a5 $1 $17 29. Re2 Qf7) 29. Be2 {[%emt 0:00:05]} (29. a5 $15) 29... Ne7 {[%emt 0:00:06] Black has more active pieces.} 30. c4 {[%emt 0:00:01]} (30. Bd3 $17) 30... Nf5 {[%emt 0:00:04]} 31. Qd3 {[%emt 0:00:07]} Nh6 {[%emt 0:00:06]} (31... Qh7 $142 {[%cal Of5d4] Hoping for ...Nxd4!} 32. Bc3 c6) 32. c5 {[%emt 0:00:12]} Be7 {[%emt 0:00:01]} 33. d5 {[%emt 0:00:01]} Rd8 {[%emt 0:00:02]} (33... g4 34. hxg4 hxg4 35. d6 gxf3 36. Bxf3 cxd6 37. cxd6 $16) 34. d6 {[%emt 0:00:01]} cxd6 {[%emt 0:00:01]} 35. c6 {[%emt 0:00:00]} bxc6 {[%emt 0:00:03]} 36. Rxc6 {[%emt 0:00:00]} Nd7 $36 {[%emt 0:00:17][%cal Od7e5][%mdl 2048] ...Ne5! is the strong threat. Black has strong initiative.} 37. Rc7 {[%emt 0:00:18] [#]} Ne5 {[%emt 0:00:00]} (37... Qxb2 $2 38. Bc3+ $18) (37... Bf6 $142 $1 38. Rxa7 Nf5 (38... Bxb2 39. Rb1 $17)) 38. Bc3 {[%emt 0:00:00]} (38. Qd5 $17) 38... Rf7 $19 {[%emt 0:00:23]} (38... Nxd3 39. Bxg7+ Kxg7 40. Bxd3) 39. Qd5 {[%emt 0:00:06]} Bf6 {[%emt 0:00:03]} 40. Rxf7 {[%emt 0:00:16]} Qxf7 {[%emt 0:00:00]} ({Weaker is} 40... Nhxf7 41. Rc1 $17) (40... Nexf7 41. Ba5 $19) 41. Rd1 {[%emt 0:00:08]} Qxd5 {[%emt 0:00:01]} 42. Rxd5 {[%emt 0:00:00]} Nf5 {[%emt 0:00:02]} 43. Nf1 {[%emt 0:00:01]} Ne7 {[%emt 0:00:03] Excellent horsemanship.} 44. Ra5 {[%emt 0:00:05]} d5 {[%emt 0:00:02]} 45. Bxe5 {[%emt 0:00:25]} Bxe5 {[%emt 0:00:00]} 46. Rxa7 {[%emt 0:00:01]} Nc6 {[%emt 0:00:01]} 47. Rb7 {[%emt 0:00:09]} Nd4 {[%emt 0:00:03]} 48. Bd3 {[%emt 0:00:00]} e2 {[%emt 0:00:14]} 49. Bxe2 {[%emt 0:00:01]} (49. Kf2 {was the only defense.} exf1=B (49... exf1=N $2 50. Kxf1 Rc8 51. Kf2 $19) 50. Kxf1) 49... Nxe2+ {[%emt 0:00:00]} 50. Kf2 {[%emt 0:00:01]} Nc1 {[%emt 0:00:03]} 51. b4 {[%emt 0:00:04]} Rc8 {[%emt 0:00:12] aiming for ...Rc2+.} 52. a5 {[%emt 0:00:05]} Rc2+ {[%emt 0:00:01]} 53. Ke1 {[%emt 0:00:08]} Nd3+ {[%emt 0:00:01]} 54. Kd1 {[%emt 0:00:01]} Rf2 {[%emt 0:00:03]} 55. Nd2 $2 {[%emt 0:00:01]} (55. a6 Rxf1+ 56. Kd2 Nxb4 57. a7 Rf2+ 58. Kd1) 55... Bc3 {[%emt 0:00:01]} 56. Nb3 {[%emt 0:00:03]} Nb2+ {[%emt 0:00:03]} 57. Kc1 {[%emt 0:00:01]} Nd3+ {[%emt 0:00:01]} (57... d4 $142 58. Rb8+ Kg7 59. Rb7+ Kf8 60. Rb8+ Ke7 61. Rb7+ Kd6) 58. Kd1 {[%emt 0:00:01]} Nxb4 {[%emt 0:00:01]} 59. Nc5 {[%emt 0:00:09]} Rd2+ {[%emt 0:00:02]} (59... Nc2 $142 60. Rb8+ Kh7 61. Rb7+ Kg6 62. Rb6+ Kf5 63. Re6 Ne3+ (63... Rxg2 $2 64. Na4 $19) (63... Nd4 $2 64. Re5+ Kg6 65. Nd3 $19) 64. Rxe3 fxe3 65. g4+ Kf6 (65... Kf4 {gets mated.} 66. Nd3+ Kxf3 67. Nxf2 exf2 68. Kc2 d4 69. a6 f1=Q 70. a7 Qe2+ 71. Kb3 Qb5+ 72. Ka3 Qb4+ 73. Ka2 Qb2#) 66. Nd3 e2+ (66... Rxf3 $2 67. a6 $19) 67. Kc1 Rxf3 (67... e1=R+ $2 68. Nxe1 Bxe1 69. a6 $19) 68. Kc2 Rxd3 (68... e1=R $2 69. h4 $19) (68... Bxa5 {leads to mate.} 69. h4 Rxd3 70. hxg5+ Kxg5 71. Kxd3 e1=Q 72. Kc2 Qc3+ 73. Kb1 Qd2 74. gxh5 Bc3 75. h6 Qb2#) 69. h4 e1=Q 70. hxg5+ Kxg5 71. Kb3 Bxa5+ (71... Kxg4 72. Ka4 Qb1 73. Ka3 Bxa5+ 74. Ka4 Qb4#) 72. Kb2 Qe2+ 73. Kc1 Rd1#) 60. Kc1 {[%emt 0:00:01]} Ra2 {[%emt 0:00:05][%cal Ra2a1]} 61. Ra7 {[%emt 0:00:11]} Ra1# {[%emt 0:00:01] Weighted Error Value: White=0.53/Black=0.31.  Mistake:       	White=9     	Black=5      Inaccurate:     	White=7     	Black=4      OK:         	White=13    	Black=17     Best:        	White=3     	Black=3      Strong:       	---       	Black=1} 0-1

[Event "CCT Julius Baer-D3 2024"]
[Site "Online"]
[Date "2024.09.29"]
[Round "54"]
[White "Niemann, Hans Moke"]
[Black "Bharath Subramaniyam H"]
[Result "1-0"]
[Annotator "ChessBase"]
[ECO "C55"]
[WhiteElo "2733"]
[BlackElo "2561"]
[PlyCount "205"]
[EventDate "2024.09.25"]
[EventType "swiss"]
[EventCountry "NET"]
[SourceTitle "playchess.com"]
[Source "ChessBase"]
[SourceQuality "1"]
[TimeControl "600+2"]

1. e4 {[%emt 0:00:04]} e5 {[%emt 0:03:05]} 2. Nf3 {[%emt 0:00:03]} Nc6 {[%emt 0:00:02]} 3. Bc4 {[%emt 0:00:03]} Nf6 {[%emt 0:00:02]} 4. d3 {[%emt 0:00:02]} Be7 {[%emt 0:00:03]} 5. O-O {[%emt 0:00:03]} O-O {[%emt 0:00:02]} 6. Re1 {[%emt 0:00:02]} d6 {[%emt 0:00:03]} 7. a3 {[%emt 0:00:02]} Be6 {[%emt 0:00:06]} 8. Nc3 {[%emt 0:00:05]} Qd7 {[%emt 0:00:24]} 9. h3 {[%emt 0:00:09]} Rfe8 {[%emt 0:00:09]} 10. Nd5 {[%emt 0:00:05]} Bd8 {[%emt 0:00:25]} 11. Bg5 {[%emt 0:00:13]} Bxd5 {[%emt 0:00:10]} 12. exd5 {[%emt 0:00:06]} Ne7 {[%emt 0:00:11]} 13. Bxf6 {[%emt 0:00:06]} gxf6 {[%emt 0:00:02]} 14. Nh4 {[%emt 0:00:04]} Ng6 {[%emt 0:00:16]} 15. Qh5 {[%emt 0:00:03]} Nxh4 {[%emt 0:00:04]} 16. Qxh4 {[%emt 0:00:02]} f5 {[%emt 0:00:05]} 17. Qh5 {[%emt 0:00:05]} Kh8 {[%emt 0:00:07]} 18. d4 {[%emt 0:00:13]} Bf6 {[%emt 0:00:04]} 19. dxe5 {[%emt 0:00:57]} dxe5 {[%emt 0:00:02]} 20. d6 {[%emt 0:00:06]} cxd6 {[%emt 0:00:04]} 21. Bxf7 {[%emt 0:00:11]} Rf8 {[%emt 0:00:20]} 22. Bd5 {[%emt 0:00:04]} Rae8 {[%emt 0:00:10]} 23. Rad1 {[%emt 0:00:07]} Re7 {[%emt 0:00:06]} 24. Re3 {[%emt 0:00:17]} e4 {[%emt 0:00:09]} 25. Qe2 {[%emt 0:00:21]} Rg7 {[%emt 0:00:06]} 26. Rb3 {[%emt 0:00:17]} b6 {[%emt 0:00:04]} 27. Rb5 {[%emt 0:01:00]} Qe8 {[%emt 0:00:10]} 28. Kh1 {[%emt 0:00:35]} Be5 {[%emt 0:00:07]} 29. Rg1 {[%emt 0:00:04]} Rf6 {[%emt 0:00:08]} 30. Rb3 {[%emt 0:00:04]} Qg6 {[%emt 0:00:16]} 31. a4 {[%emt 0:00:11]} Rf8 {[%emt 0:00:35]} 32. Ra3 {[%emt 0:00:29]} Qh6 {[%emt 0:00:05]} 33. Qe3 {[%emt 0:00:32]} Bf4 {[%emt 0:00:03]} 34. Qe2 {[%emt 0:00:06]} Be5 {[%emt 0:00:03]} 35. c4 {[%emt 0:00:09]} Qf4 {[%emt 0:00:07]} 36. g3 {[%emt 0:00:07]} Qh6 {[%emt 0:00:02]} 37. Kg2 {[%emt 0:00:04]} f4 {[%emt 0:00:19]} 38. Bxe4 {[%emt 0:00:19]} fxg3 {[%emt 0:00:10]} 39. f3 {[%emt 0:00:03]} Qf6 {[%emt 0:00:22]} 40. Rb1 {[%emt 0:00:05]} Rg5 {[%emt 0:00:06]} 41. b4 {[%emt 0:00:16]} Rh5 {[%emt 0:00:13]} 42. Rh1 {[%emt 0:00:04]} Rh4 {[%emt 0:00:04]} 43. Rd3 {[%emt 0:00:04]} Qe6 {[%emt 0:00:09]} 44. Rd5 {[%emt 0:00:09]} Rf6 {[%emt 0:00:16]} 45. Qd3 {[%emt 0:00:10]} Rf8 {[%emt 0:00:26]} 46. a5 {[%emt 0:00:07]} Rg8 {[%emt 0:00:04]} 47. Bf5 {[%emt 0:00:08]} Qf6 {[%emt 0:00:05]} 48. a6 {[%emt 0:00:15]} Qh6 {[%emt 0:00:11]} 49. Bg4 {[%emt 0:00:13]} Qf4 {[%emt 0:00:09]} 50. c5 {[%emt 0:00:23]} Rgxg4 {[%emt 0:00:16]} 51. cxb6 {[%emt 0:00:16]} Rg8 {[%emt 0:00:03]} 52. b7 {[%emt 0:00:10]} Qxb4 {[%emt 0:00:08]} 53. Rb5 {[%emt 0:00:06]} Qa4 {[%emt 0:00:04]} 54. b8=Q {[%emt 0:00:19]} Qa2+ {[%emt 0:00:14]} 55. Rb2 {[%emt 0:00:03]} Bxb2 {[%emt 0:00:03]} 56. Qbb3 {[%emt 0:00:09]} Qxb3 {[%emt 0:00:02]} 57. Qxb3 {[%emt 0:00:02]} Be5 {[%emt 0:00:03]} 58. Rd1 {[%emt 0:00:18]} Rc8 {[%emt 0:00:03]} 59. Rd2 {[%emt 0:00:04]} Rhc4 {[%emt 0:00:03]} 60. f4 {[%emt 0:00:10]} Bxf4 {[%emt 0:00:04]} 61. Re2 {[%emt 0:00:02]} Be5 {[%emt 0:00:03]} 62. Qb7 {[%emt 0:00:03]} R4c7 {[%emt 0:00:03]} 63. Qd5 {[%emt 0:00:03]} Rc2 {[%emt 0:00:03]} 64. Rxc2 {[%emt 0:00:13]} Rxc2+ {[%emt 0:00:03]} 65. Kf3 {[%emt 0:00:02]} Rf2+ {[%emt 0:00:04]} 66. Ke3 {[%emt 0:00:06]} Bf4+ {[%emt 0:00:03]} 67. Ke4 {[%emt 0:00:04]} Be5 {[%emt 0:00:05]} 68. Qa8+ {[%emt 0:00:04]} Kg7 {[%emt 0:00:02]} 69. Qxa7+ {[%emt 0:00:02]} Rf7 {[%emt 0:00:03]} 70. Qg1 {[%emt 0:00:06]} Rf4+ {[%emt 0:00:02]} 71. Kd5 {[%emt 0:00:03]} Ra4 {[%emt 0:00:04]} 72. a7 {[%emt 0:00:03]} Ra2 {[%emt 0:00:03]} 73. Ke6 {[%emt 0:00:05]} h5 {[%emt 0:00:03]} 74. h4 {[%emt 0:00:03]} Kh6 {[%emt 0:00:03]} 75. Qe3+ {[%emt 0:00:04]} Kg7 {[%emt 0:00:02]} 76. Qg5+ {[%emt 0:00:02]} Kh7 {[%emt 0:00:03]} 77. Qxh5+ {[%emt 0:00:03]} Kg7 {[%emt 0:00:02]} 78. Qg5+ {[%emt 0:00:03]} Kh7 {[%emt 0:00:03]} 79. Qe7+ {[%emt 0:00:03]} Kh6 {[%emt 0:00:02]} 80. Qf8+ {[%emt 0:00:02]} Kh5 {[%emt 0:00:03]} 81. a8=Q {[%emt 0:00:04]} Rxa8 {[%emt 0:00:02]} 82. Qxa8 {[%emt 0:00:02]} Kxh4 {[%emt 0:00:02]} 83. Qg2 {[%emt 0:00:03]} Kg4 {[%emt 0:00:03]} 84. Kd5 {[%emt 0:00:02]} Kf4 {[%emt 0:00:02]} 85. Qe4+ {[%emt 0:00:03]} Kg5 {[%emt 0:00:02]} 86. Qf3 {[%emt 0:00:02]} Kh4 {[%emt 0:00:03]} 87. Ke4 {[%emt 0:00:04]} Kh3 {[%emt 0:00:02]} 88. Qh1+ {[%emt 0:00:02]} Kg4 {[%emt 0:00:02]} 89. Qg2 {[%emt 0:00:02]} Bf6 {[%emt 0:00:04]} 90. Ke3 {[%emt 0:00:03]} Bg5+ {[%emt 0:00:03]} 91. Ke2 {[%emt 0:00:02]} Bf4 {[%emt 0:00:03]} 92. Qf3+ {[%emt 0:00:02]} Kf5 {[%emt 0:00:02]} 93. Kf1 {[%emt 0:00:02]} Ke5 {[%emt 0:00:03]} 94. Kg2 {[%emt 0:00:03]} d5 {[%emt 0:00:02]} 95. Qe2+ {[%emt 0:00:02]} Kd4 {[%emt 0:00:03]} 96. Qd1+ {[%emt 0:00:02]} Ke5 {[%emt 0:00:02]} 97. Qf3 {[%emt 0:00:02]} d4 {[%emt 0:00:02]} 98. Qh5+ {[%emt 0:00:02]} Ke4 {[%emt 0:00:02]} 99. Qd1 {[%emt 0:00:03]} Ke5 {[%emt 0:00:03]} 100. Qa4 {[%emt 0:00:02]} Ke4 {[%emt 0:00:02]} 101. Qa6 {[%emt 0:00:02]} d3 {[%emt 0:00:02]} 102. Qa8+ {[%emt 0:00:03]} Ke3 {[%emt 0:00:02]} 103. Qe8+ {[%emt 0:00:02]} 1-0

[Event "CCT Julius Baer-D3 2024"]
[Site "Online"]
[Date "2024.09.29"]
[Round "54"]
[White "Navara, David"]
[Black "Yoo, Christopher Woojin"]
[Result "1/2-1/2"]
[Annotator "TA"]
[ECO "E04"]
[WhiteElo "2681"]
[BlackElo "2603"]
[PlyCount "85"]
[EventDate "2024.09.25"]
[EventType "swiss"]
[EventCountry "NET"]
[SourceTitle "playchess.com"]
[Source "ChessBase"]
[SourceQuality "1"]
[TimeControl "600+2"]

{[%evp 15,85,17,25,8,27,22,41,35,63,18,14,23,32,0,-7,-14,-24,-18,-17,-21,0,-15,-11,-8,-12,-10,-13,-8,-15,-16,0,0,0,0,0,0,0,0,0,0,0,0,0,0,0,0,0,0,0,0,0,0,0,0,0,0,0,0,0,0,0,0,0,0,0,0,0,0,0,0,0,0]} 1. Nf3 {[%emt 0:00:02]} d5 {[%emt 0:00:11]} 2. g3 {[%emt 0:00:05]} Nf6 {[%emt 0:00:11]} 3. Bg2 {[%emt 0:00:02]} c5 {[%emt 0:00:01]} 4. O-O {[%emt 0:00:14]} Nc6 {[%emt 0:00:02]} 5. d4 {[%emt 0:00:01]} e6 {[%emt 0:00:01]} 6. c4 {[%emt 0:00:08]} dxc4 {[%emt 0:00:02]} 7. Qa4 {[%emt 0:00:03]} Bd7 {[%emt 0:00:05]} 8. Qxc4 {[%emt 0:00:02]} b5 {[%emt 0:00:40]} 9. Qc3 {[%emt 0:00:02]} Nd5 {[%emt 0:00:15]} 10. Qd2 {[%emt 0:00:37]} cxd4 {[%emt 0:00:04]} 11. Nxd4 {[%emt 0:00:02] White is slightly better.} Qb6 {[%emt 0:00:23]} 12. Bxd5 {[%emt 0:00:31]} (12. Nb3 $5) 12... exd5 {[%emt 0:00:02]} 13. Nxc6 {[%emt 0:00:24]} Bxc6 {[%emt 0:00:39][%cal Bd7c6,Bc6d5,Bd5b3][%mdl 32]} 14. Qe3+ {[%emt 0:00:32]} Be7 {[%emt 0:00:02]} 15. Rd1 {[%emt 0:00:19] [#]} d4 $1 {[%emt 0:00:48]} 16. Qe5 {[%emt 0:00:40]} f6 {[%emt 0:00:45] The position is equal.} 17. Qe6 {[%emt 0:00:23]} Qc5 {[%emt 0:01:00]} 18. Nd2 {[%emt 0:00:55]} Bd5 {[%emt 0:00:53] Inhibits Nb3.} 19. Qf5 {[%emt 0:00:28]} O-O {[%emt 0:00:26]} 20. Nb3 {[%emt 0:00:20]} Bxb3 {[%emt 0:00:04] A strong pair of Bishops.} 21. Qxc5 {[%emt 0:00:00]} Bxc5 {[%emt 0:00:00]} 22. axb3 {[%emt 0:00:00]} Rfe8 {[%emt 0:00:27]} 23. Kf1 {[%emt 0:00:01]} Re6 {[%emt 0:00:02]} 24. Bd2 {[%emt 0:00:20]} Rae8 {[%emt 0:00:01]} 25. Re1 {[%emt 0:00:46]} Bb6 {[%emt 0:00:01]} 26. Ba5 {[%emt 0:00:23]} Bxa5 {[%emt 0:00:21]} 27. Rxa5 $11 {[%emt 0:00:00][%mdl 4096] Endgame. KRR-KRR} d3 {[%emt 0:00:11]} 28. e3 {[%emt 0:00:04]} a6 {[%emt 0:00:06]} 29. Rd1 {[%emt 0:01:01]} Rd6 {[%emt 0:00:03]} 30. Raa1 {[%emt 0:00:25]} Rc8 {[%emt 0:00:07]} 31. Rd2 {[%emt 0:00:10]} Kf7 {[%emt 0:00:13]} 32. Rad1 {[%emt 0:00:05]} Ke6 {[%emt 0:00:27]} 33. Ke1 {[%emt 0:00:41]} Rcd8 {[%emt 0:00:12]} 34. Rc1 {[%emt 0:00:03]} f5 {[%emt 0:00:07]} 35. b4 {[%emt 0:00:16]} g5 {[%emt 0:00:13]} 36. f3 {[%emt 0:00:00]} f4 {[%emt 0:00:28]} 37. Kf2 {[%emt 0:00:31]} fxe3+ {[%emt 0:00:01]} 38. Kxe3 {[%emt 0:00:00]} Kf6 {[%emt 0:00:02]} 39. Rc3 {[%emt 0:00:11]} Re8+ {[%emt 0:00:02]} 40. Kf2 {[%emt 0:00:01]} Red8 {[%emt 0:00:00]} 41. Ke3 {[%emt 0:00:09][%cal Rd2d3]} Re8+ {[%emt 0:00:02]} 42. Kf2 {[%emt 0:00:01]} Red8 {[%emt 0:00:01]} 43. Ke3 {[%emt 0:00:05] Weighted Error Value: White=0.03 (flawless) /Black=0.03 (flawless) .  Inaccurate:     	White=2     	Black=1      OK:         	White=22    	Black=16     Best:        	---       	Black=1} 1/2-1/2

[Event "CCT Julius Baer-D3 2024"]
[Site "Online"]
[Date "2024.09.29"]
[Round "54"]
[White "Sindarov, Javokhir"]
[Black "Makarian, Rudik"]
[Result "1-0"]
[Annotator "TA"]
[ECO "C50"]
[WhiteElo "2677"]
[BlackElo "2550"]
[PlyCount "51"]
[EventDate "2024.09.25"]
[EventType "swiss"]
[EventCountry "NET"]
[SourceTitle "playchess.com"]
[Source "ChessBase"]
[SourceQuality "1"]
[TimeControl "600+2"]

{[%evp 12,51,14,10,15,10,8,0,20,18,19,20,22,20,27,21,39,29,143,141,143,148,149,141,169,141,193,194,231,237,535,534,801,800,952,735,912,589,29971,29975,3447,1340]} 1. e4 {[%emt 0:00:02]} e5 {[%emt 0:00:05]} 2. Nf3 {[%emt 0:00:01]} Nc6 {[%emt 0:00:00]} 3. Bc4 {[%emt 0:00:02]} Nf6 {[%emt 0:00:02]} 4. d3 {[%emt 0:00:04]} Bc5 {[%emt 0:00:05]} 5. Nc3 {[%emt 0:00:01]} h6 {[%emt 0:00:09]} 6. O-O {[%emt 0:00:08]} d6 {[%emt 0:00:22]} 7. Na4 {[%emt 0:00:02]} Bb6 {[%emt 0:00:06]} 8. a3 {[%emt 0:00:17]} O-O {[%emt 0:00:11]} 9. h3 {[%emt 0:00:14]} Be6 {[%emt 0:00:27] The position is equal.} 10. Bxe6 {[%emt 0:00:03]} fxe6 {[%emt 0:00:00]} 11. b4 {[%emt 0:00:04]} Qd7 {[%emt 0:01:23]} 12. c3 {[%emt 0:00:04]} Rf7 {[%emt 0:00:14]} 13. Ra2 {[%emt 0:00:11]} Raf8 {[%emt 0:00:05]} 14. Re1 {[%emt 0:00:03][%cal Bf1e1,Be1e3,Be3g3,Bg3g4,Bg4h4,Bh4h6,Bh6f6,Bf6f8][%mdl 32]} Nh5 {[%emt 0:00:28] [#]} (14... Ne7 $11) 15. Nxb6 $1 $16 {[%emt 0:00:19]} axb6 {[%emt 0:00:03] [#]} 16. Ng5 $1 {[%emt 0:00:01][%mdl 512]} hxg5 {[%emt 0:00:46]} 17. Qxh5 {[%emt 0:00:01]} b5 {[%emt 0:00:00]} 18. Bxg5 {[%emt 0:00:10]} Na7 {[%emt 0:00:02]} (18... d5 $16 {keeps fighting.} 19. Rc1 Ra8) 19. Re3 $18 {[%emt 0:00:16]} Nc6 {[%emt 0:00:19]} 20. Rg3 {[%emt 0:00:20] Black must now prevent Rg4.} d5 $2 {[%emt 0:00:01]} (20... Qe8 21. Bh6 b6) 21. Rg4 {[%emt 0:00:12]} Qe8 {[%emt 0:00:19][%cal Of7f2]} 22. Rh4 {[%emt 0:00:07][%csl Gh4][%cal Rh5h7]} Rd7 {[%emt 0:00:01]} 23. Qh7+ {[%emt 0:00:00]} Kf7 {[%emt 0:00:00]} 24. Rh6 {[%emt 0:00:25] aiming for exd5.} Qc8 {[%emt 0:00:26]} 25. Rf6+ {[%emt 0:00:04]} Ke8 {[%emt 0:00:01]} 26. Rxf8+ {[%emt 0:00:00] Weighted Error Value: White=0.24 (precise) /Black=0.96.  Mistake:       	---       	Black=3      Inaccurate:     	---       	Black=1      OK:         	White=8     	Black=3      Best:        	White=1     	---        Strong:       	White=1     	---        Brilliant:      	White=1     	---} 1-0

[Event "CCT Julius Baer-D3 2024"]
[Site "Online"]
[Date "2024.09.29"]
[Round "54"]
[White "Yoo, Christopher Woojin"]
[Black "Navara, David"]
[Result "1-0"]
[Annotator "TA"]
[ECO "E01"]
[WhiteElo "2603"]
[BlackElo "2681"]
[PlyCount "37"]
[EventDate "2024.09.25"]
[EventType "swiss"]
[EventCountry "NET"]
[SourceTitle "playchess.com"]
[Source "ChessBase"]
[SourceQuality "1"]
[TimeControl "600+2"]

{[%evp 15,36,0,0,-14,-17,-2,-17,-8,31,45,39,45,417,289,678,650,650,613,606,614,1092,1081,29999]} 1. Nf3 {[%emt 0:00:02]} d5 {[%emt 0:00:07]} 2. d4 {[%emt 0:00:02]} Nf6 {[%emt 0:00:01]} 3. c4 {[%emt 0:00:01]} c6 {[%emt 0:00:01]} 4. Nc3 {[%emt 0:00:13]} e6 {[%emt 0:00:01]} 5. g3 {[%emt 0:00:15]} Nbd7 {[%emt 0:00:26]} 6. Bg2 {[%emt 0:00:06]} dxc4 {[%emt 0:00:03]} 7. O-O {[%emt 0:00:03]} b5 {[%emt 0:00:11]} 8. e4 {[%emt 0:00:10]} Bb7 {[%emt 0:00:40]} 9. a4 {[%emt 0:00:08]} b4 {[%emt 0:00:49]} 10. e5 $1 {[%emt 0:00:02]} bxc3 {[%emt 0:00:53]} 11. exf6 {[%emt 0:00:02] The position is equal.} gxf6 {[%emt 0:00:20]} 12. bxc3 {[%emt 0:00:03]} c5 {[%emt 0:00:03]} 13. Re1 {[%emt 0:00:42][%cal Of3g5] [#] Black must now prevent Ng5!} cxd4 $2 {[%emt 0:01:33][%mdl 8192]} (13... Bg7 $14) 14. Nxd4 $18 {[%emt 0:00:08]} Bxg2 $2 {[%emt 0:00:01]} (14... Qb6 15. Qh5 e5) 15. Nxe6 {[%emt 0:00:01]} ({Stronger than} 15. Kxg2 Ne5 16. Qh5 Qd5+ 17. f3 O-O-O $15) 15... fxe6 {[%emt 0:00:30]} 16. Qh5+ {[%emt 0:00:03]} (16. Kxg2 $2 {perishes.} Qb6 17. Qd5 O-O-O 18. Qxc4+ (18. Rxe6 Ne5 $17) 18... Nc5 $19) 16... Ke7 {[%emt 0:00:01] [#] Hoping for ...Qe8.} 17. Ba3+ {[%emt 0:00:01]} (17. Kxg2 Qb6 18. Kg1 Qc6 $17) 17... Nc5 {[%emt 0:00:00]} 18. Rad1 {[%emt 0:00:18] Against Bd5} Qe8 {[%emt 0:00:53]} 19. Bxc5# {[%emt 0:00:04] Black got outplayed after the opening.   Weighted Error Value: White=0.02 (flawless) /Black=1.86.  Loses game:     	---       	Black=1      Mistake:       	---       	Black=1      Inaccurate:     	White=1     	Black=1      OK:         	White=2     	Black=2      Best:        	White=2     	Black=1      Strong:       	White=1     	---} 1-0